fUSD/lending_fUSD_20250402
["ID","MTS","AMOUNT","RATE_DAILY","PERIOD"]
[357003022,1743566771334,-173.0307,0.00014894,2]
[357003023,1743566771360,-34.02689082,0.00014899,2]
[357003024,1743566831120,-734.97010918,0.00014899,2]
[357003025,1743566831141,-782.44630272,0.00014899,2]
[357003026,1743566831162,-207.0,0.00014899,2]
[357003027,1743566831182,-810.6043,0.000149,2]
[357003028,1743566831202,-254.8581,0.000149,2]
[357003029,1743566831223,-74882.9653,0.000149,2]
[357003030,1743566831244,-1494.6537,0.000149,2]
[357003031,1743566831266,-2869.3183,0.000149,2]
[357003032,1743566831285,-364.6131,0.000149,2]
[357003033,1743566831308,-174.91511922,0.000149,2]
[357003034,1743566831328,-6691.6942,0.000149,2]
[357003035,1743566831349,-351.6747,0.000149,2]
[357003036,1743566831371,-780.9,0.00014906,2]
[357003037,1743566831392,-200.0,0.00014951,2]
[357003038,1743566831413,-984.53206888,0.00014953,2]
[357003039,1743566831435,-215.17244367,0.00014953,2]
[357003040,1743566831456,-500.0,0.00014973,2]
[357003041,1743566831476,-172.98,0.00014977,2]
[357003042,1743566831498,-150.0,0.00014987,2]
[357003043,1743566831519,-564.0,0.00015,2]
[357003044,1743566831542,-43752.22628638,0.00015,2]
[357003046,1743566947210,-446.87741051,0.000149,2]
[357003049,1743567035668,-101.85998949,0.000149,2]
[357003050,1743567035678,-181.01002412,0.00014901,2]
[357003051,1743567035687,-215.17244367,0.00014901,2]
[357003052,1743567035696,-529.0,0.00014901,2]
[357003053,1743567035706,-934.15669689,0.00014901,2]
[357003054,1743567035719,-171.37097463,0.00014973,2]
[357003055,1743567035728,-511.0,0.00015,2]
[357003056,1743567035737,-1524.99830895,0.00015,2]
[357003057,1743567035749,-11068.878,0.00015,2]
[357003058,1743567035760,-142896.78369641,0.00015,2]
[357003059,1743567035777,-1648.22776271,0.00015,2]
[357003060,1743567035789,-946.99381483,0.00015,2]
[357003061,1743567035802,-556.26670477,0.00015,2]
[357003062,1743567035884,-3827.24738291,0.00015,2]
[357003063,1743567035938,-1202.68287334,0.00015,2]
[357003064,1743567035949,-1422.06416702,0.00015,2]
[357003065,1743567036043,-536.83568415,0.00015,2]
[357003066,1743567036097,-1302.66754437,0.00015,2]
[357003125,1743567037351,-29290.11381496,0.00015,2]
[357003126,1743567037361,-4734.46149004,0.00015,2]
[357003127,1743567037373,-24375.75429604,0.00015,2]
[357003132,1743567037692,-189590.67819314,0.00015,2]
[357003133,1743567037704,-589.97551441,0.00015,2]
[357003330,1743567039752,-1693.11142,0.00015,2]
[357003332,1743567039764,-2068.51969205,0.00015,2]
[357003359,1743567040014,-1756.64276918,0.00015,2]
[357003525,1743567042519,-23973.95721219,0.00015,2]
[357003526,1743567042625,-1736.88466266,0.00015,2]
[357003527,1743567042678,-9888.61882399,0.00015,2]
[357003528,1743567042689,-797.70304762,0.00015,2]
[357003544,1743567043584,-543.49803871,0.00015,2]
[357003545,1743567043600,-3860.32510182,0.00015,2]
[357003551,1743567045399,-3572.14768005,0.00015,2]
[357003552,1743567045609,-777.69084732,0.00015,2]
[357003553,1743567045718,-10471.784483,0.00015,2]
[357003554,1743567045825,-7201.90247,0.00015,2]
[357003718,1743567061213,782.51,0.00013572,2]
[357003719,1743567081836,4279.0,0.00034268,30]
[357003720,1743567211546,435.4312853,0.00014585,2]
[357003722,1743567437700,178.9493,0.000148,2]
[357003723,1743567510773,403.999,0.000147,2]
[357003724,1743567668325,1000.0,0.000148,2]
[357003725,1743567713476,1336.0,0.000148,2]
[357003726,1743567735695,435.4312853,0.00014546,2]
[357003727,1743567763984,176.79817418,0.000148,2]
[357003728,1743567849694,150.62115637,0.00015,20]
[357003729,1743567889917,308.1,0.00014698,2]
[357003730,1743567930615,444.7444909,0.000148,2]
[357003731,1743567949751,155.47,0.00014696,2]
[357003732,1743567962211,350.0,0.000149,12]
[357003733,1743567962273,350.0,0.00014901,12]
[357003734,1743567982765,500.0,0.00014666,2]
[357003735,1743568030899,150.0,0.00014196,7]
[357003736,1743568053122,-7714.6802,0.000149,2]
[357003737,1743568053146,-500.0,0.000149,2]
[357003738,1743568053168,-6139.6974,0.000149,2]
[357003739,1743568053188,-1099.4448,0.000149,2]
[357003740,1743568053209,-941.2035,0.000149,2]
[357003741,1743568053230,-162.86240698,0.000149,2]
[357003742,1743568053257,-877.80070539,0.000149,2]
[357003743,1743568053281,-150.0,0.000149,2]
[357003744,1743568053307,-877.80070535,0.000149,2]
[357003745,1743568053332,-877.80070535,0.00014901,2]
[357003746,1743568053354,-174.91511922,0.00014901,2]
[357003747,1743568053379,-877.80070535,0.00014901,2]
[357003748,1743568053402,-877.80070535,0.00014901,2]
[357003749,1743568053426,-877.80070535,0.00014902,2]
[357003750,1743568053450,-877.80070535,0.00014902,2]
[357003751,1743568053474,-877.80070535,0.00014902,2]
[357003752,1743568053498,-877.80070535,0.00014903,2]
[357003753,1743568053522,-162.86240698,0.00014903,2]
[357003754,1743568053547,-877.80070535,0.00014903,2]
[357003755,1743568053571,-3677.76173925,0.00014903,2]
[357003756,1743568053594,-500.0,0.00014973,2]
[357003757,1743568053624,-134600.05544686,0.00015,2]
[357003758,1743568061352,176.79817417,0.000148,2]
[357003759,1743568070410,818.42,0.00013393,2]
[357003760,1743568122985,23900.0,0.00014795,2]
[357003764,1743568147623,-227.88766749,0.000149,2]
[357003766,1743568147650,-2254.02213887,0.000149,2]
[357003770,1743568172446,-1219.97857364,0.000149,2]
[357003772,1743568172474,-391.34924933,0.000149,2]
[357003778,1743568231547,-413.21193929,0.000149,2]
[357003783,1743568231607,-628.42,0.000149,2]
[357003785,1743568231618,-1018.85997088,0.000149,2]
[357003787,1743568231627,-120.82175412,0.000149,2]
[357003789,1743568231638,-71.89631416,0.000149,2]
[357003790,1743568231648,-2984.14119634,0.00015,2]
[357003791,1743568231664,-376413.88084467,0.00015,2]
[357003792,1743568231675,-1390.10669724,0.00015,2]
[357003793,1743568231686,-580.09410336,0.00015,2]
[357003794,1743568231721,-6530.04607583,0.00015,2]
[357003795,1743568231732,-1301.36397506,0.00015,2]
[357003796,1743568231743,-950.26546194,0.00015,2]
[357003797,1743568231753,-1266.60175907,0.00015,2]
[357003798,1743568231779,-396.16,0.00015,2]
[357003799,1743568231790,-5622.03985906,0.00015,2]
[357003800,1743568231801,-753.29785426,0.00015,2]
[357003801,1743568231812,-83793.60103454,0.00015,2]
[357003802,1743568231898,-2208.97184433,0.00015,2]
[357003803,1743568231910,-15032.36203729,0.00015,2]
[357003804,1743568231921,-7933.5579185,0.00015,2]
[357003805,1743568231933,-3890.22791917,0.00015,2]
[357003806,1743568231944,-71974.51803984,0.00015,2]
[357003966,1743568237523,-79604.85140699,0.00015,2]
[357003967,1743568237535,-449.500001,0.00015,2]
[357003968,1743568237548,-736.57390145,0.00015,2]
[357003969,1743568237558,-1026.92935832,0.00015,2]
[357003970,1743568237569,-368.47889,0.00015,2]
[357003971,1743568237579,-680.891175,0.00015,2]
[357003972,1743568237590,-528.69395831,0.00015,2]
[357003973,1743568237601,-859.54031443,0.00015,2]
[357003974,1743568237642,-2125.0,0.00015,2]
[357003975,1743568237847,-32708.99352579,0.00015,2]
[357003976,1743568237858,-614.6374616,0.00015,2]
[357003977,1743568237870,-498.014838,0.00015,2]
[357003980,1743568237889,-1374.5550006,0.00015,2]
[357003982,1743568237900,-23886.10019724,0.00015,2]
[357003984,1743568237911,-1029.578,0.00015,2]
[357003986,1743568237922,-925.1,0.00015,2]
[357003988,1743568237933,-497.48646388,0.00015,2]
[357004049,1743568238501,435.4312853,0.00014715,2]
[357004154,1743568239682,-643.47365204,0.00015,2]
[357004155,1743568239740,-5765.18510963,0.00015,2]
[357004156,1743568239761,-7901.67657273,0.00015,2]
[357004157,1743568239854,-1034.6788,0.00015,2]
[357004158,1743568239970,-329.53313977,0.00015,2]
[357004159,1743568239982,-3150.11392817,0.00015,2]
[357004160,1743568240191,-2335.29685159,0.00015,2]
[357004161,1743568240203,-1025.06710056,0.00015,2]
[357004162,1743568242641,-1794.0,0.00015,2]
[357004163,1743568242809,-3469.73566078,0.00015,2]
[357004182,1743568296151,184.55,0.00014744,2]
[357004183,1743568299288,5301.03,0.00014804,2]
[357004184,1743568448989,518.23066378,0.00034266,30]
[357004185,1743568467346,874.72,0.00014772,2]
[357004188,1743568523089,-1312.0124,0.000149,2]
[357004189,1743568523111,-500.0,0.000149,2]
[357004190,1743568523133,-19937.8607,0.000149,2]
[357004191,1743568523155,-2881.0024,0.000149,2]
[357004192,1743568523177,-164.70968104,0.000149,2]
[357004193,1743568523202,-906.5324,0.000149,2]
[357004194,1743568523224,-162.47593309,0.000149,2]
[357004195,1743568523246,-325.0,0.00014901,2]
[357004196,1743568523269,-503.05666869,0.00014973,2]
[357004197,1743568523292,-500.0,0.00014973,2]
[357004198,1743568523322,-386.8134353,0.00014994,2]
[357004199,1743568523346,-12532.5889157,0.00014995,2]
[357004200,1743568523370,-7773.6669891,0.00014995,2]
[357004201,1743568523397,-537011.57166124,0.00015,2]
[357004202,1743568523424,-1365102.70881584,0.00015,2]
[357004203,1743568649685,-1939.3520109,0.000149,2]
[357004204,1743568649708,-596695.47865087,0.00015,2]
[357004205,1743568672364,-100000.0,0.00015,2]
[357004206,1743568674301,-100000.0,0.00015,2]
[357004207,1743568675975,-100000.0,0.00015,2]
[357004208,1743568694160,-10000.0,0.00015,2]
[357004209,1743568695208,-10000.0,0.00015,2]
[357004210,1743568696287,-10000.0,0.00015,2]
[357004211,1743568697227,-10000.0,0.00015,2]
[357004212,1743568698117,-10000.0,0.00015,2]
[357004213,1743568698977,-10000.0,0.00015,2]
[357004214,1743568699811,-10000.0,0.00015,2]
[357004215,1743568700647,-10000.0,0.00015,2]
[357004216,1743568701415,-10000.0,0.00015,2]
[357004217,1743568710758,323.199,0.000147,2]
[357004218,1743568714171,-1000.0,0.00015,2]
[357004219,1743568715088,-1000.0,0.00015,2]
[357004220,1743568716091,-1000.0,0.00015,2]
[357004221,1743568716913,-1000.0,0.00015,2]
[357004222,1743568717695,-1000.0,0.00015,2]
[357004223,1743568718413,-1000.0,0.00015,2]
[357004224,1743568719113,-1000.0,0.00015,2]
[357004225,1743568719799,-1000.0,0.00015,2]
[357004226,1743568720440,-1000.0,0.00015,2]
[357004227,1743568721126,-1000.0,0.00015,2]
[357004228,1743568728007,-900.0,0.00015,2]
[357004229,1743568738053,-400.0,0.00015,2]
[357004231,1743568795466,452.00215018,0.00014571,2]
[357004232,1743568807358,-150.0,0.0001489,2]
[357004233,1743569078185,777.49,0.00013292,2]
[357004234,1743569145204,1000.0,0.00034261,30]
[357004235,1743569244096,-150.0,0.00014899,2]
[357004236,1743569244118,-167194.09972733,0.000149,2]
[357004237,1743569391771,-8768.05989334,0.000149,2]
[357004239,1743569391819,-7743.99793096,0.000149,2]
[357004244,1743569431790,-978.02127164,0.000149,2]
[357004245,1743569431801,-1873.49192395,0.000149,2]
[357004246,1743569431812,-4167.12112149,0.000149,2]
[357004247,1743569431898,-298.86,0.000149,2]
[357004248,1743569431909,-2995.11799,0.000149,2]
[357004249,1743569431920,-78004.54884129,0.000149,2]
[357004250,1743569431929,-1965.05409013,0.00014995,2]
[357004251,1743569431940,-3894.63008053,0.00014995,2]
[357004252,1743569431955,-3162.85049579,0.00014995,2]
[357004253,1743569431967,-3302.04807585,0.00014995,2]
[357004254,1743569431976,-7662.5470535,0.00014995,2]
[357004255,1743569431985,-4329.59141718,0.00015,2]
[357004256,1743569432118,-13868.86248936,0.00015,2]
[357004257,1743569432129,-453.51,0.00015,2]
[357004363,1743569437690,-70791.84178331,0.00015,2]
[357004364,1743569437929,-50108.14665328,0.00015,2]
[357004365,1743569437940,-1656.67937437,0.00015,2]
[357004366,1743569437952,-14063.58019568,0.00015,2]
[357004367,1743569438018,-386.8134353,0.00015,2]
[357004411,1743569439946,-981.89589485,0.00015,2]
[357004412,1743569439958,-326.79817054,0.00015,2]
[357004413,1743569440001,-947.66428876,0.00015,2]
[357004414,1743569440013,-401.52065679,0.00015,2]
[357004455,1743569443757,-3355.20581973,0.00015,2]
[357004516,1743569445964,-4899.0400005,0.00015,2]
[357004517,1743569445975,-843.28300001,0.00015,2]
[357004518,1743569445987,-1070.859624,0.00015,2]
[357004519,1743569446021,-2206.34458337,0.00015,2]
[357004520,1743569446480,-98699.99999582,0.00015,2]
[357004521,1743569451112,834.2563,0.000148,2]
[357004522,1743569588031,684.98,0.0003426,30]
[357004523,1743569629682,-150.99,0.00014893,2]
[357004524,1743569655197,150.0,0.00014239,2]
[357004525,1743569719836,717.3,0.00014245,2]
[357004526,1743569729740,172.73,0.00014248,2]
[357004527,1743569867621,31242.99,0.0001424,2]
[357004528,1743570095187,1003.05,0.00013172,2]
[357004529,1743570100456,200.0,0.00014243,2]
[357004530,1743570185203,1092.84,0.00014329,2]
[357004531,1743570207812,389.52,0.00014319,2]
[357004532,1743570257905,314.03,0.00014243,2]
[357004533,1743570327526,2004.0,0.00032,120]
[357004534,1743570351635,250.0,0.00014737,2]
[357004535,1743570396289,500.0,0.00014306,2]
[357004536,1743570434137,-151.0,0.00014892,2]
[357004537,1743570434159,-1863.79,0.00014893,2]
[357004538,1743570434179,-5095.8,0.00014893,2]
[357004539,1743570434201,-763.6433,0.000149,2]
[357004540,1743570434222,-744.3104,0.000149,2]
[357004541,1743570434243,-914.8417,0.000149,2]
[357004542,1743570434263,-4207.3268,0.000149,2]
[357004543,1743570434284,-364.0055,0.000149,2]
[357004544,1743570434305,-22309.6108,0.000149,2]
[357004545,1743570434327,-160.87229059,0.000149,2]
[357004546,1743570434348,-544.8715,0.000149,2]
[357004547,1743570434369,-163.60400221,0.000149,2]
[357004548,1743570434390,-787.9915,0.000149,2]
[357004549,1743570434413,-211.50121811,0.000149,2]
[357004550,1743570434434,-326.2717,0.000149,2]
[357004551,1743570434456,-662.70733431,0.00014972,2]
[357004552,1743570434477,-506.41551795,0.00014973,2]
[357004553,1743570434497,-506.94451099,0.00014973,2]
[357004554,1743570434518,-500.0,0.00014973,2]
[357004555,1743570434539,-501.07473719,0.00014973,2]
[357004556,1743570434559,-160.60405449,0.00014973,2]
[357004557,1743570434580,-5375.6060441,0.00014995,2]
[357004558,1743570434602,-58616.00394317,0.00015,2]
[357004562,1743570600630,-295.02765253,0.000149,2]
[357004563,1743570600658,-500.0,0.000149,2]
[357004564,1743570600686,-156.72874554,0.000149,2]
[357004566,1743570631921,-33.62235075,0.000149,2]
[357004567,1743570631930,-153.61015238,0.00014973,2]
[357004568,1743570631941,-13731.3552668,0.00014995,2]
[357004569,1743570631950,-7209.2384106,0.00014995,2]
[357004570,1743570631960,-42981.39163688,0.00015,2]
[357004571,1743570631971,-27830.17671194,0.00015,2]
[357004572,1743570631983,-562.5,0.00015,2]
[357004573,1743570631994,-718.889993,0.00015,2]
[357004574,1743570632005,-970.99304133,0.00015,2]
[357004575,1743570632016,-927.61514,0.00015,2]
[357004576,1743570632028,-11477.56866556,0.00015,2]
[357004577,1743570632039,-7968.2,0.00015,2]
[357004578,1743570632050,-259.7595,0.00015,2]
[357004579,1743570632061,-1577.05553975,0.00015,2]
[357004580,1743570632073,-365.19994533,0.00015,2]
[357004581,1743570632084,-610.44814184,0.00015,2]
[357004582,1743570632096,-5000.00297171,0.00015,2]
[357004583,1743570632210,-948.9,0.00015,2]
[357004584,1743570632222,-312.5,0.00015,2]
[357004585,1743570632267,-1166.26282641,0.00015,2]
[357004649,1743570637879,-555.23343069,0.00015,2]
[357004650,1743570637901,-225761.47649916,0.00015,2]
[357004651,1743570638123,-11715.42187235,0.00015,2]
[357004652,1743570638135,-11333.89980342,0.00015,2]
[357004653,1743570638146,-13050.4944388,0.00015,2]
[357004654,1743570638158,-9036.30497233,0.00015,2]
[357004655,1743570638169,-11610.86009018,0.00015,2]
[357004656,1743570638181,-4770.83653177,0.00015,2]
[357004657,1743570638192,-358.33485164,0.00015,2]
[357004658,1743570638204,-689.32368187,0.00015,2]
[357004659,1743570638215,-983.76745006,0.00015,2]
[357004660,1743570638231,-16322.12664002,0.00015,2]
[357004662,1743570638242,-861.3952356,0.00015,2]
[357004664,1743570638253,-12000.0,0.00015,2]
[357004666,1743570638265,-50897.56208084,0.00015,2]
[357004668,1743570638276,-945.17380999,0.00015,2]
[357004671,1743570638287,-359.28,0.00015,2]
[357004673,1743570638298,-485.4608619,0.00015,2]
[357004675,1743570638309,-3821.21033686,0.00015,2]
[357004677,1743570638321,-2053.71525372,0.00015,2]
[357004679,1743570638331,-1235.0,0.00015,2]
[357004855,1743570640077,-508.0,0.00015,2]
[357004857,1743570640087,-9088.56911935,0.00015,2]
[357004859,1743570640098,-2978.0790618,0.00015,2]
[357004876,1743570640254,-0.00331284,0.00015,2]
[357004878,1743570640265,-2916.80879525,0.00015,2]
[357004881,1743570640276,-7431.5567033,0.00015,2]
[357004901,1743570640461,-600.0,0.00015,2]
[357004904,1743570640473,-381.68613041,0.00015,2]
[357005098,1743570642991,-527.2466018,0.000149,2]
[357005100,1743570643003,-281.2245982,0.000149,2]
[357005102,1743570643012,-512.9985,0.000149,2]
[357005103,1743570643022,-22420.30501711,0.00015,2]
[357005104,1743570643096,-5943.508195,0.00015,2]
[357005105,1743570643107,-634.32408474,0.00015,2]
[357005106,1743570644326,-380.09194999,0.00015,2]
[357005112,1743570646026,-279.0414,0.00015,2]
[357005113,1743570646038,-5510.1542467,0.00015,2]
[357005114,1743570646083,-468.31489477,0.00015,2]
[357005115,1743570646094,-329.97399996,0.00015,2]
[357005116,1743570646105,-500.0,0.00015,2]
[357005117,1743570646203,-10774.72186403,0.00015,2]
[357005118,1743570646215,-348.95445286,0.00015,2]
[357005608,1743570734483,442.138173,0.0001482,2]
[357005609,1743570779733,981.53,0.00014165,2]
[357005610,1743570793519,250.0,0.00014171,2]
[357005611,1743570797963,-771.7467,0.00014895,2]
[357005612,1743570797985,-2028.2533,0.000149,2]
[357005613,1743570867130,500.0,0.00032,120]
[357005614,1743570870756,500.0,0.00032,120]
[357005615,1743570989607,4693.47,0.00014168,2]
[357005616,1743570998104,1000.0,0.00032,120]
[357005617,1743571004406,500.0,0.00032,120]
[357005618,1743571004487,164.05,0.00013699,2]
[357005620,1743571008113,500.0,0.00014174,2]
[357005621,1743571021448,59633.69797951,0.0001485,2]
[357005622,1743571055279,514.737,0.00032,120]
[357005623,1743571092436,281.59,0.00014523,2]
[357005624,1743571139053,184.64,0.00014722,2]
[357005625,1743571177894,1118.97,0.00012267,2]
[357005626,1743571178110,1118.97,0.00014531,2]
[357005627,1743571286135,200.0,0.00014155,2]
[357005628,1743571287873,1301.12,0.00014165,2]
[357005630,1743571314129,23900.0,0.00014165,2]
[357005631,1743571314599,1000.0,0.000148,2]
[357005632,1743571381422,150.0,0.00014194,7]
[357005633,1743571410265,500.0,0.00014185,2]
[357005634,1743571426386,2453.49,0.00014185,2]
[357005635,1743571467725,1000.0,0.00014201,2]
[357005636,1743571494737,200.0,0.00014155,2]
[357005637,1743571518727,826.39,0.0001423,2]
[357005638,1743571528129,2021.83789031,0.00011,2]
[357005639,1743571531436,151.73,0.00014326,2]
[357005640,1743571554891,3692.11,0.00014212,2]
[357005641,1743571568054,1828.15083371,8e-05,2]
[357005642,1743571592613,3847.52,0.00014099,2]
[357005644,1743571670857,25932.12,0.00014052,2]
[357005646,1743571716158,760.84245632,0.00034253,30]
[357005647,1743571732886,166.66,0.00014472,2]
[357005648,1743571748133,1062.0,0.000148,2]
[357005649,1743571767835,-150.0,0.00014899,2]
[357005650,1743571767863,-150.0,0.00014899,2]
[357005651,1743571767890,-579.06422631,0.000149,2]
[357005652,1743571767917,-579.06422631,0.000149,2]
[357005653,1743571767945,-440.606,0.000149,2]
[357005656,1743571768148,-6799.69956205,0.000149,2]
[357005658,1743571768191,-8424.42883795,0.000149,2]
[357005659,1743571768220,-159.15337866,0.000149,2]
[357005660,1743571768248,-114.85179806,0.000149,2]
[357005661,1743571768285,-501.09604658,0.000149,2]
[357005662,1743571768313,-187.41042552,0.000149,2]
[357005663,1743571768340,-187.52815749,0.000149,2]
[357005664,1743571792965,-273.81338325,0.000149,2]
[357005665,1743571792993,-96.65385481,0.000149,2]
[357005669,1743571811813,6857.52,0.00014052,2]
[357005670,1743571830645,1081.05,0.00014056,2]
[357005684,1743571832093,-76.55999706,0.000149,2]
[357005686,1743571832103,-311.67371356,0.000149,2]
[357005687,1743571832115,-1415.3308646,0.000149,2]
[357005688,1743571832124,-577.70660303,0.00014903,2]
[357005689,1743571832174,-38.24124153,0.00014903,2]
[357005690,1743571832185,-187.41042552,0.00014903,2]
[357005691,1743571832195,-603.66326214,0.00014906,2]
[357005692,1743571832238,-12.28458242,0.00014906,2]
[357005693,1743571832247,-187.41042552,0.00014906,2]
[357005694,1743571832257,-615.94784456,0.00014909,2]
[357005695,1743571832266,-308.85570596,0.00014912,2]
[357005696,1743571832278,-307.0921386,0.00014912,2]
[357005697,1743571832287,-150.0,0.00014913,2]
[357005698,1743571832296,-615.94784456,0.00014914,2]
[357005699,1743571832305,-7452.72911596,0.00014914,2]
[357005700,1743571832317,-962.060596,0.00014914,2]
[357005701,1743571832329,-3180.4513027,0.00014914,2]
[357005702,1743571832340,-1285.97105457,0.00014914,2]
[357005703,1743571832418,-3576.10273858,0.00014914,2]
[357005704,1743571832431,-585.30398229,0.00014914,2]
[357005705,1743571832454,-1.63753268,0.00014914,2]
[357005706,1743571832467,-324.52799995,0.00014914,2]
[357005707,1743571832479,-1163.41190175,0.00014914,2]
[357005708,1743571832490,-5590.21831102,0.00014914,2]
[357005781,1743571838139,-807.91684802,0.00014914,2]
[357005782,1743571838151,-2086.44402493,0.00014914,2]
[357005783,1743571838258,-632.24375976,0.00014914,2]
[357005784,1743571838270,-328.3771047,0.00014914,2]
[357005785,1743571838283,-324.24975527,0.00014914,2]
[357005786,1743571838294,-3211.4127052,0.00014914,2]
[357005787,1743571838318,-265.52488719,0.00014914,2]
[357005794,1743571840462,-480.52057538,0.00014914,2]
[357005795,1743571840576,-552.0764703,0.00014914,2]
[357005796,1743571840588,-799.00933375,0.00014914,2]
[357005797,1743571840597,-779.36,0.00014914,2]
[357005798,1743571840606,-999.99,0.00014914,2]
[357005799,1743571840615,-280.24,0.00014914,2]
[357005800,1743571840625,-7988.87,0.00014914,2]
[357005801,1743571840634,-9999.99,0.00014914,2]
[357005802,1743571840644,-218.09,0.00014914,2]
[357005803,1743571840653,-745.47,0.00014914,2]
[357005804,1743571840663,-299.99,0.00014914,2]
[357005805,1743571840672,-150.99,0.00014914,2]
[357005806,1743571840682,-150.99,0.00014914,2]
[357005807,1743571840692,-499.99,0.00014914,2]
[357005808,1743571840701,-9999.99,0.00014914,2]
[357005809,1743571840711,-2394.71,0.00014914,2]
[357005810,1743571840720,-1122.32,0.00014914,2]
[357005811,1743571840730,-3027.72,0.00014914,2]
[357005812,1743571840740,-615.94784456,0.00014917,2]
[357005813,1743571840749,-615.94784456,0.0001492,2]
[357005814,1743571840758,-615.94784456,0.00014923,2]
[357005815,1743571840767,-615.94784456,0.00014926,2]
[357005816,1743571840776,-166.66,0.00014949,2]
[357005817,1743571840786,-167.7199814,0.00014996,2]
[357005818,1743571840795,-9117.2256636,0.00014996,2]
[357005819,1743571840805,-4722.37062971,0.00014999,2]
[357005820,1743571840814,-500.0,0.00014999,2]
[357005821,1743571840823,-500.0,0.00014999,2]
[357005822,1743571840832,-615.54497958,0.00014999,2]
[357005823,1743571840844,-500.0,0.00014999,2]
[357005824,1743571840855,-500.0,0.00014999,2]
[357005825,1743571840864,-500.0,0.00014999,2]
[357005826,1743571840873,-500.0,0.00014999,2]
[357005827,1743571840883,-500.0,0.00014999,2]
[357005828,1743571840891,-500.0,0.00014999,2]
[357005829,1743571840901,-500.0,0.00014999,2]
[357005830,1743571840909,-551.0,0.00015,2]
[357005831,1743571840918,-173179.77303372,0.00015,2]
[357005832,1743571840937,-42111.0,0.00015,2]
[357005862,1743571843266,-260.07311864,0.00015,2]
[357005869,1743571846110,-8426.9,0.00015,2]
[357005870,1743571846403,-520.97501412,0.00015,2]
[357005872,1743571846472,-98699.99999582,0.00015,2]
[357006111,1743571979659,250.0,0.00014052,2]
[357006113,1743572225070,-153.02861109,0.000149,2]
[357006114,1743572225095,-1151.33638544,0.000149,2]
[357006115,1743572225120,-5928.11691247,0.0001499,2]
[357006116,1743572225145,-4273.35,0.00014991,2]
[357006117,1743572225170,-568.39388662,0.00014999,2]
[357006118,1743572225194,-503.0,0.00015,2]
[357006119,1743572225222,-12296.77420438,0.00015,2]
[357006127,1743572292020,1007.07,0.00013135,2]
[357006128,1743572310814,258.559,0.000147,2]
[357006130,1743572651834,500.0,0.00032,120]
[357006132,1743572654891,172.0,0.00013699,2]
[357006133,1743572867344,-151.43559359,0.00014896,2]
[357006134,1743572871665,-28.66387711,0.00014896,2]
[357006135,1743572871688,-121.33612289,0.00014898,2]
[357006137,1743572951054,-58.7633478,0.00014898,2]
[357006138,1743572951084,-159.15337865,0.000149,2]
[357006139,1743572951116,-180.09947069,0.000149,2]
[357006141,1743572951146,-160.07046933,0.000149,2]
[357006142,1743572951176,-664.98273415,0.000149,2]
[357006145,1743572994409,2563.0,0.0003426,30]
[357006146,1743573032297,-150.0,0.00014999,2]
[357006147,1743573032307,-1330.9971167,0.00015,2]
[357006148,1743573032319,-1534.3108601,0.00015,2]
[357006149,1743573032330,-402.91371413,0.00015,2]
[357006150,1743573032352,-382.23193864,0.00015,2]
[357006151,1743573032363,-614.72573488,0.00015,2]
[357006152,1743573036561,-700.0,0.00015,2]
[357006153,1743573036576,-320.09861389,0.00015,2]
[357006199,1743573038247,-500.0,0.00015,2]